[Event "XVI Memorial Lezcano Montalvo 2024"]
[Site "Gran Canaria"]
[Date "2024.03.28"]
[Round "6.27"]
[White "Cruz Pino, Adrian"]
[Black "Bangiev, Katharina"]
[Result "1-0"]
[ECO "D85"]
[WhiteElo "2015"]
[BlackElo "1779"]
[Annotator "NA RC"]
[PlyCount "81"]
[EventDate "2024.03.23"]
[EventType "swiss"]
[EventCountry "ESP"]
[SourceTitle "playchess.com"]
[Source "ChessBase"]
[SourceQuality "1"]
[TimeControl "5400+30"]

1. d4 {[%emt 0:00:06]} Nf6 {[%emt 0:00:06]} 2. c4 {[%emt 0:00:12]} g6 {[%emt 0:00:18]} 3. Nc3 {[%emt 0:00:09]} d5 {[%emt 0:00:23]} 4. Nf3 {[%emt 0:00:23]} Bg7 {[%emt 0:00:18]} 5. cxd5 {[%emt 0:00:48]} Nxd5 {[%emt 0:00:12]} 6. e4 {[%emt 0:00:32]} Nxc3 {[%emt 0:00:11]} 7. bxc3 {[%emt 0:00:03]} O-O {[%emt 0:00:42]} 8. Be2 {[%emt 0:03:03]} c5 {[%emt 0:00:22]} 9. Be3 {[%emt 0:00:20]} Nc6 {[%emt 0:01:45]} 10. Qd2 {[%emt 0:00:43]} Qa5 {[%emt 0:04:06]} 11. Rc1 {[%emt 0:05:17]} cxd4 {[%emt 0:05:44]} 12. cxd4 {[%emt 0:00:24]} Qxd2+ {[%emt 0:00:49]} 13. Kxd2 {[%emt 0:00:03]} Bg4 {[%emt 0:06:29]} 14. d5 {[%emt 0:01:36]} Bxf3 {[%emt 0:01:06]} 15. gxf3 {[%emt 0:00:38]} Rfd8 {[%emt 0:07:07]} 16. Rhd1 {[%emt 0:14:55]} e6 {[%emt 0:25:14]} 17. Ke1 {[%emt 0:00:19]} exd5 {[%emt 0:01:18]} 18. exd5 {[%emt 0:00:04]} Nb4 {[%emt 0:02:36]} 19. Bc4 {[%emt 0:00:31]} b5 {[%emt 0:04:28]} 20. Bb3 {[%emt 0:16:00]} a5 {[%emt 0:05:19]} 21. d6 {[%emt 0:01:35]} a4 {[%emt 0:08:07]} 22. Bd5 {[%emt 0:00:05]} Nxd5 {[%emt 0:01:00]} 23. Rxd5 {[%emt 0:00:04]} Rd7 {[%emt 0:00:51]} 24. Rc7 {[%emt 0:00:51]} Rad8 {[%emt 0:00:42]} 25. Rxb5 {[%emt 0:14:05]} Rxd6 {[%emt 0:07:39]} 26. Rbb7 {[%emt 0:00:03]} Rf8 {[%emt 0:03:27]} 27. Ra7 {[%emt 0:05:27]} Re6 {[%emt 0:03:44]} 28. Kf1 {[%emt 0:00:19]} Be5 {[%emt 0:01:17]} 29. Rcb7 {[%emt 0:00:04]} Rf6 {[%emt 0:00:53]} 30. Kg2 {[%emt 0:00:23]} Rf5 {[%emt 0:03:25]} 31. Rxa4 {[%emt 0:00:18]} Rd8 {[%emt 0:00:49]} 32. Ra5 {[%emt 0:01:03]} Bd4 {[%emt 0:03:54]} 33. Rxf5 {[%emt 0:00:57]} gxf5 {[%emt 0:00:02]} 34. Bh6 {[%emt 0:05:53]} Ra8 {[%emt 0:01:01]} 35. Rd7 {[%emt 0:02:07]} Bf6 {[%emt 0:00:50]} 36. Rb7 {[%emt 0:01:44]} Bd4 {[%emt 0:00:37]} 37. a4 {[%emt 0:00:42]} Bc3 {[%emt 0:00:43]} 38. Kf1 {[%emt 0:01:41]} f6 {[%emt 0:00:59]} 39. Ke2 {[%emt 0:00:55]} Rxa4 {[%emt 0:00:22]} 40. Rg7+ {[%emt 0:00:04]} Kh8 {[%emt 0:00:18]} 41. Rc7 {[%emt 0:00:05]} 1-0

[Event "XVI Memorial Lezcano Montalvo 2024"]
[Site "Gran Canaria"]
[Date "2024.03.28"]
[Round "6.28"]
[White "Sosa Suarez, Carla Cristina"]
[Black "Lorenzo Ventura, Abel"]
[Result "1-0"]
[ECO "B10"]
[WhiteElo "1980"]
[BlackElo "1772"]
[Annotator "NA RC"]
[PlyCount "51"]
[EventDate "2024.03.23"]
[EventType "swiss"]
[EventCountry "ESP"]
[SourceTitle "playchess.com"]
[Source "ChessBase"]
[SourceQuality "1"]
[TimeControl "5400+30"]

1. e4 {[%emt 0:00:35]} c6 {[%emt 0:02:17]} 2. Nf3 {[%emt 0:00:05]} d5 {[%emt 0:00:07]} 3. exd5 {[%emt 0:00:06]} cxd5 {[%emt 0:00:06]} 4. Ne5 {[%emt 0:00:03]} Nf6 {[%emt 0:09:12]} 5. d4 {[%emt 0:00:13]} Nc6 {[%emt 0:00:44]} 6. c3 {[%emt 0:00:04]} e6 {[%emt 0:10:34]} 7. Nd2 {[%emt 0:00:25]} Qc7 {[%emt 0:00:25]} 8. f4 {[%emt 0:02:02]} Bd6 {[%emt 0:02:21]} 9. Bd3 {[%emt 0:01:20]} a6 {[%emt 0:04:53]} 10. a4 {[%emt 0:01:19]} Rb8 {[%emt 0:02:23]} 11. Qe2 {[%emt 0:00:37]} Na7 {[%emt 0:17:23]} 12. O-O {[%emt 0:02:59]} Bd7 {[%emt 0:00:11]} 13. Ndf3 {[%emt 0:02:59]} h6 {[%emt 0:02:15]} 14. f5 {[%emt 0:09:08]} Bxe5 {[%emt 0:05:03]} 15. Nxe5 {[%emt 0:00:36]} Rc8 {[%emt 0:05:23]} 16. Bf4 {[%emt 0:03:17]} Qd8 {[%emt 0:00:01]} 17. fxe6 {[%emt 0:04:05]} Bxe6 {[%emt 0:02:17]} 18. Ng6 {[%emt 0:01:47]} Rg8 {[%emt 0:01:00]} 19. Rae1 {[%emt 0:03:40]} Nd7 {[%emt 0:06:54]} 20. Bg3 {[%emt 0:09:22]} Rc6 {[%emt 0:00:34]} 21. Nf4 {[%emt 0:03:51]} Nf6 {[%emt 0:02:20]} 22. Bf5 {[%emt 0:02:47]} Ne4 {[%emt 0:01:06]} 23. Bxe4 {[%emt 0:03:42]} dxe4 {[%emt 0:00:01]} 24. Qxe4 {[%emt 0:00:27]} g5 {[%emt 0:01:08]} 25. Nh5 {[%emt 0:02:30]} Rg6 {[%emt 0:02:05]} 26. d5 {[%emt 0:02:28]} 1-0

[Event "XVI Memorial Lezcano Montalvo 2024"]
[Site "Gran Canaria"]
[Date "2024.03.28"]
[Round "6.29"]
[White "Rossello Padron, Carlos"]
[Black "Perez Bolanos, Joel"]
[Result "0-1"]
[ECO "A25"]
[WhiteElo "1792"]
[BlackElo "2046"]
[Annotator "NA RC"]
[PlyCount "58"]
[EventDate "2024.03.23"]
[EventType "swiss"]
[EventCountry "ESP"]
[SourceTitle "playchess.com"]
[Source "ChessBase"]
[SourceQuality "1"]
[TimeControl "5400+30"]

1. c4 {[%emt 0:09:43]} e5 {[%emt 0:00:15]} 2. Nc3 {[%emt 0:02:45]} Nf6 {[%emt 0:00:06]} 3. d3 {[%emt 0:00:58]} Nc6 {[%emt 0:03:26]} 4. Bg5 {[%emt 0:02:01]} h6 {[%emt 0:01:52]} 5. Bxf6 {[%emt 0:02:01]} Qxf6 {[%emt 0:00:07]} 6. Nf3 {[%emt 0:01:09]} Bb4 {[%emt 0:03:50]} 7. Qb3 {[%emt 0:02:16]} O-O {[%emt 0:01:06]} 8. O-O-O {[%emt 1:13:37]} Bxc3 {[%emt 0:02:33]} 9. Qxc3 {[%emt 0:00:00]} Nd4 {[%emt 0:00:04]} 10. Rg1 {[%emt 0:00:00]} d6 {[%emt 0:00:59]} 11. Qd2 {[%emt 0:00:00]} Nxf3 {[%emt 0:02:20]} 12. gxf3 {[%emt 0:00:00]} Be6 {[%emt 0:00:15]} 13. Rg3 {[%emt 0:00:00]} Qh4 {[%emt 0:07:31]} 14. Bg2 {[%emt 0:00:00]} b5 {[%emt 0:04:53]} 15. Rg1 {[%emt 0:00:00]} bxc4 {[%emt 0:03:37]} 16. f4 {[%emt 0:00:00]} exf4 {[%emt 0:13:24]} 17. Bxa8 {[%emt 0:00:00]} fxg3 {[%emt 0:00:11]} 18. hxg3 {[%emt 0:00:00]} Qh2 {[%emt 0:01:42]} 19. Rh1 {[%emt 0:00:00]} Qxf2 {[%emt 0:00:23]} 20. Bf3 {[%emt 0:00:00]} cxd3 {[%emt 0:00:28]} 21. Qxd3 {[%emt 0:00:00]} Bxa2 {[%emt 0:01:02]} 22. b3 {[%emt 0:00:00]} Rb8 {[%emt 0:02:19]} 23. Bd5 {[%emt 0:00:00]} c6 {[%emt 0:00:07]} 24. Rxh6 {[%emt 0:00:00]} gxh6 {[%emt 0:07:02]} 25. Qg6+ {[%emt 0:00:00]} Kf8 {[%emt 0:00:02]} 26. Qxd6+ {[%emt 0:00:00]} Kg7 {[%emt 0:00:04]} 27. Qxb8 {[%emt 0:00:00]} cxd5 {[%emt 0:00:28]} 28. Qe5+ {[%emt 0:00:00]} Qf6 {[%emt 0:00:04]} 29. Qxd5 {[%emt 0:00:00]} Qc3+ {[%emt 0:44:50]} 0-1

[Event "XVI Memorial Lezcano Montalvo 2024"]
[Site "Gran Canaria"]
[Date "2024.03.28"]
[Round "6.30"]
[White "Cabrera Ramos, Javier"]
[Black "Fernandez Manrique, Agustin"]
[Result "0-1"]
[ECO "E60"]
[WhiteElo "1784"]
[BlackElo "2017"]
[Annotator "NA RC"]
[PlyCount "60"]
[EventDate "2024.03.23"]
[EventType "swiss"]
[EventCountry "ESP"]
[SourceTitle "playchess.com"]
[Source "ChessBase"]
[SourceQuality "1"]
[TimeControl "5400+30"]

1. Nf3 {[%emt 0:00:02]} Nf6 {[%emt 0:00:55]} 2. e3 {[%emt 0:00:10]} d6 {[%emt 0:00:06]} 3. c4 {[%emt 0:00:07]} g6 {[%emt 0:00:21]} 4. b3 {[%emt 0:00:17]} Bg7 {[%emt 0:00:08]} 5. Bb2 {[%emt 0:00:02]} O-O {[%emt 0:00:17]} 6. d4 {[%emt 0:00:29]} c6 {[%emt 0:00:10]} 7. Bd3 {[%emt 0:00:13]} Nbd7 {[%emt 0:00:20]} 8. Qc2 {[%emt 0:00:45]} Re8 {[%emt 0:00:26]} 9. Nbd2 {[%emt 0:00:37]} e5 {[%emt 0:03:47]} 10. O-O-O {[%emt 0:00:08]} Qe7 {[%emt 0:01:49]} 11. dxe5 {[%emt 0:01:26]} dxe5 {[%emt 0:00:54]} 12. Ne1 {[%emt 0:01:35]} Nc5 {[%emt 0:03:05]} 13. f3 {[%emt 0:00:50]} a5 {[%emt 0:15:07]} 14. e4 {[%emt 0:01:11]} a4 {[%emt 0:04:03]} 15. b4 {[%emt 0:00:14]} a3 {[%emt 0:00:22]} 16. Ba1 {[%emt 0:01:10]} Na6 {[%emt 0:01:14]} 17. b5 {[%emt 0:03:27]} cxb5 {[%emt 0:02:12]} 18. cxb5 {[%emt 0:00:16]} Nb4 {[%emt 0:00:00]} 19. Qb3 {[%emt 0:03:50]} Be6 {[%emt 0:02:24]} 20. Bc4 {[%emt 0:00:15]} Bxc4 {[%emt 0:06:57]} 21. Nxc4 {[%emt 0:00:09]} Rec8 {[%emt 0:00:20]} 22. Kd2 {[%emt 0:01:30]} Qc5 {[%emt 0:01:53]} 23. Kc3 {[%emt 0:03:09]} Bf8 {[%emt 0:05:23]} 24. Rd3 {[%emt 0:04:15]} Qf2 {[%emt 0:06:44]} 25. Qb1 {[%emt 0:04:19]} Qxa2 {[%emt 0:13:23]} 26. Qxa2 {[%emt 0:00:29]} Nxa2+ {[%emt 0:00:02]} 27. Kb3 {[%emt 0:00:26]} Nc1+ {[%emt 0:00:38]} 28. Kc3 {[%emt 0:00:47]} Ra4 {[%emt 0:00:45]} 29. Rd1 {[%emt 0:03:36]} Raxc4+ {[%emt 0:00:31]} 30. Kd2 {[%emt 0:00:05]} Bh6+ {[%emt 0:00:13]} 0-1

[Event "XVI Memorial Lezcano Montalvo 2024"]
[Site "Gran Canaria"]
[Date "2024.03.28"]
[Round "6.32"]
[White "Arnaiz Yanes, Miguel Angel"]
[Black "Barrera Martin, Nayra Maria"]
[Result "1-0"]
[ECO "D13"]
[WhiteElo "1947"]
[BlackElo "1728"]
[Annotator "RC"]
[PlyCount "133"]
[EventDate "2024.03.23"]
[EventType "swiss"]
[EventCountry "ESP"]
[SourceTitle "playchess.com"]
[Source "ChessBase"]
[SourceQuality "1"]
[TimeControl "5400+30"]

1. d4 {[%emt 0:00:02]} d5 {[%emt 0:00:27]} 2. Nf3 {[%emt 0:00:08]} c5 {[%emt 0:00:51]} 3. c3 {[%emt 0:00:02]} cxd4 {[%emt 0:01:57]} 4. cxd4 {[%emt 0:00:23]} Nf6 {[%emt 0:00:23]} 5. e3 {[%emt 0:00:40]} g6 {[%emt 0:01:41]} 6. Bd3 {[%emt 0:00:19]} Bg7 {[%emt 0:00:19]} 7. O-O {[%emt 0:00:58]} Nc6 {[%emt 0:01:18]} 8. a3 {[%emt 0:00:18]} O-O {[%emt 0:00:59]} 9. Nbd2 {[%emt 0:00:13]} Re8 {[%emt 0:00:52]} 10. b4 {[%emt 0:00:25]} a6 {[%emt 0:02:43]} 11. Bb2 {[%emt 0:00:08]} Bf5 {[%emt 0:01:36]} 12. Nb3 {[%emt 0:04:51]} Ne4 {[%emt 0:02:01]} 13. Bxe4 {[%emt 0:00:54]} dxe4 {[%emt 0:06:12]} 14. Nfd2 {[%emt 0:00:30]} e5 {[%emt 0:02:47]} 15. Nc4 {[%emt 0:21:10]} exd4 {[%emt 0:05:41]} 16. Nxd4 {[%emt 0:05:47]} Nxd4 {[%emt 0:05:35]} 17. Bxd4 {[%emt 0:00:09]} Qg5 {[%emt 0:00:56]} 18. f4 {[%emt 0:02:04]} exf3 {[%emt 0:05:58]} 19. Qxf3 {[%emt 0:01:08]} Bxd4 {[%emt 0:09:25]} 20. exd4 {[%emt 0:00:17]} Re7 {[%emt 0:03:06]} 21. Qf4 {[%emt 0:10:09]} Qh5 {[%emt 0:06:33]} 22. Ne5 {[%emt 0:06:35]} f6 {[%emt 0:03:45]} 23. Nf3 {[%emt 0:01:41]} Kg7 {[%emt 0:06:47]} 24. Rac1 {[%emt 0:00:33]} Rae8 {[%emt 0:01:47]} 25. Rc7 {[%emt 0:01:04]} Bd7 {[%emt 0:06:27]} 26. Qd6 {[%emt 0:04:56]} Qb5 {[%emt 0:03:15]} 27. h3 {[%emt 0:02:53]} Rf7 {[%emt 0:04:23]} 28. d5 {[%emt 0:07:38]} Bf5 {[%emt 0:09:51]} 29. Nd4 {[%emt 0:05:22]} Qd3 {[%emt 0:01:14]} 30. Nxf5+ {[%emt 0:03:19]} gxf5 {[%emt 0:00:18]} 31. Rf3 {[%emt 0:01:10]} Qd4+ {[%emt 0:02:31]} 32. Kh2 {[%emt 0:00:19]} Rxc7 {[%emt 0:02:14]} 33. Qxc7+ {[%emt 0:01:21]} Kf8 {[%emt 0:00:31]} 34. Qd6+ {[%emt 0:02:27]} Kf7 {[%emt 0:00:40]} 35. Rxf5 {[%emt 0:00:53]} Re7 {[%emt 0:00:39]} 36. Qc5 {[%emt 0:06:13]} Qe4 {[%emt 0:00:51]} 37. Qf2 {[%emt 0:01:06]} Ke8 {[%emt 0:01:25]} 38. d6 {[%emt 0:02:54]} Rd7 {[%emt 0:00:44]} 39. Qc5 {[%emt 0:07:16]} Qe6 {[%emt 0:00:38]} 40. Rd5 {[%emt 0:00:28]} Kf7 {[%emt 0:00:18]} 41. Qd4 {[%emt 0:00:15]} Qe2 {[%emt 0:00:22]} 42. Rc5 {[%emt 0:00:22]} Qe6 {[%emt 0:00:47]} 43. Rc7 {[%emt 0:00:24]} Ke8 {[%emt 0:00:24]} 44. Rc8+ {[%emt 0:00:28]} Kf7 {[%emt 0:01:19]} 45. Rc7 {[%emt 0:00:47]} Ke8 {[%emt 0:00:00]} 46. Qc5 {[%emt 0:00:07]} Qe5+ {[%emt 0:00:19]} 47. Qxe5+ {[%emt 0:01:02]} fxe5 {[%emt 0:00:05]} 48. Rc5 {[%emt 0:00:09]} Rxd6 {[%emt 0:00:38]} 49. Rxe5+ {[%emt 0:00:08]} Kf7 {[%emt 0:01:28]} 50. Re3 {[%emt 0:00:36]} Rd7 {[%emt 0:00:00]} 51. g4 {[%emt 0:00:06]} Kg7 {[%emt 0:00:00]} 52. Kg3 {[%emt 0:00:02]} Rf7 {[%emt 0:00:00]} 53. Rc3 {[%emt 0:00:42]} Kg6 {[%emt 0:00:11]} 54. h4 {[%emt 0:00:19]} Kg7 {[%emt 0:00:23]} 55. a4 {[%emt 0:00:10]} h6 {[%emt 0:00:21]} 56. Rc4 {[%emt 0:01:01]} Kh7 {[%emt 0:00:31]} 57. Rd4 {[%emt 0:00:19]} Kg7 {[%emt 0:00:18]} 58. g5 {[%emt 0:00:24]} hxg5 {[%emt 0:00:41]} 59. hxg5 {[%emt 0:00:10]} Kg6 {[%emt 0:00:17]} 60. Kg4 {[%emt 0:00:10]} Kg7 {[%emt 0:00:30]} 61. Rd6 {[%emt 0:00:29]} Re7 {[%emt 0:00:19]} 62. Kh5 {[%emt 0:00:20]} Kh7 {[%emt 0:00:39]} 63. b5 {[%emt 0:00:49]} axb5 {[%emt 0:00:15]} 64. axb5 {[%emt 0:00:02]} Rc7 {[%emt 0:00:15]} 65. b6 {[%emt 0:00:13]} Re7 {[%emt 0:00:04]} 66. Rd4 {[%emt 0:00:37]} Kg7 {[%emt 0:00:19]} 67. Rc4 {[%emt 0:00:06]} 1-0

[Event "XVI Memorial Lezcano Montalvo 2024"]
[Site "Gran Canaria"]
[Date "2024.03.28"]
[Round "6.33"]
[White "de Leon Navarro, Claudio"]
[Black "Mesa Rodriguez, Antonio"]
[Result "1-0"]
[ECO "A45"]
[WhiteElo "1931"]
[BlackElo "1697"]
[Annotator "NA RC"]
[PlyCount "97"]
[EventDate "2024.03.23"]
[EventType "swiss"]
[EventCountry "ESP"]
[SourceTitle "playchess.com"]
[Source "ChessBase"]
[SourceQuality "1"]
[TimeControl "5400+30"]

1. d4 {[%emt 0:06:54]} Nf6 {[%emt 0:00:01]} 2. Bf4 {[%emt 0:00:21]} g6 {[%emt 0:00:09]} 3. Nc3 {[%emt 0:00:21]} d5 {[%emt 0:00:58]} 4. e3 {[%emt 0:00:18]} Bg7 {[%emt 0:00:22]} 5. h4 {[%emt 0:00:24]} h5 {[%emt 0:00:07]} 6. Nf3 {[%emt 0:00:10]} O-O {[%emt 0:00:30]} 7. Qd2 {[%emt 0:01:47]} c6 {[%emt 0:05:45]} 8. Bd3 {[%emt 0:01:33]} Nbd7 {[%emt 0:01:02]} 9. O-O-O {[%emt 0:05:57]} b5 {[%emt 0:06:01]} 10. Ng5 {[%emt 0:01:22]} a5 {[%emt 0:01:18]} 11. f3 {[%emt 0:00:39]} a4 {[%emt 0:01:15]} 12. e4 {[%emt 0:09:32]} Qb6 {[%emt 0:13:10]} 13. e5 {[%emt 0:05:43]} Ne8 {[%emt 0:18:50]} 14. e6 {[%emt 0:03:03]} b4 {[%emt 0:10:17]} 15. Ne2 {[%emt 0:04:55]} b3 {[%emt 0:02:52]} 16. cxb3 {[%emt 0:04:05]} axb3 {[%emt 0:00:11]} 17. a3 {[%emt 0:00:34]} fxe6 {[%emt 0:04:34]} 18. Nxe6 {[%emt 0:01:22]} Rf6 {[%emt 0:01:32]} 19. Nxg7 {[%emt 0:02:15]} Nxg7 {[%emt 0:00:26]} 20. Bg5 {[%emt 0:00:36]} Re6 {[%emt 0:04:38]} 21. Nf4 {[%emt 0:01:34]} Qxd4 {[%emt 0:02:21]} 22. Nxe6 {[%emt 0:02:22]} Nxe6 {[%emt 0:00:06]} 23. Bxg6 {[%emt 0:08:37]} Qg7 {[%emt 0:00:21]} 24. Bf5 {[%emt 0:03:17]} Nec5 {[%emt 0:01:02]} 25. Bh6 {[%emt 0:05:02]} Qe5 {[%emt 0:00:35]} 26. Qg5+ {[%emt 0:02:27]} Kh8 {[%emt 0:00:31]} 27. Rhe1 {[%emt 0:01:51]} Ne4 {[%emt 0:25:06]} 28. fxe4 {[%emt 0:05:55]} Rxa3 {[%emt 0:00:00]} 29. Bg7+ {[%emt 0:00:44]} Qxg7 {[%emt 0:00:00]} 30. Qxg7+ {[%emt 0:00:18]} Kxg7 {[%emt 0:00:00]} 31. bxa3 {[%emt 0:00:09]} dxe4 {[%emt 0:00:00]} 32. Bxd7 {[%emt 0:00:19]} Bxd7 {[%emt 0:00:00]} 33. Rxd7 {[%emt 0:00:15]} c5 {[%emt 0:00:00]} 34. Rxe7+ {[%emt 0:00:13]} Kf6 {[%emt 0:00:00]} 35. R7xe4 {[%emt 0:00:28]} c4 {[%emt 0:00:00]} 36. Rxc4 {[%emt 0:00:20]} Kf5 {[%emt 0:00:00]} 37. Rc8 {[%emt 0:00:44]} Kg4 {[%emt 0:00:00]} 38. Rg8+ {[%emt 0:00:20]} Kf5 {[%emt 0:00:00]} 39. Rf8+ {[%emt 0:00:17]} Kg4 {[%emt 0:00:00]} 40. Re7 {[%emt 0:01:58]} Kg3 {[%emt 0:00:00]} 41. Rg7+ {[%emt 0:00:38]} Kh2 {[%emt 0:00:00]} 42. g4 {[%emt 0:00:30]} hxg4 {[%emt 0:00:00]} 43. Rxg4 {[%emt 0:00:18]} Kh3 {[%emt 0:00:00]} 44. Rfg8 {[%emt 0:00:23]} Kh2 {[%emt 0:00:00]} 45. h5 {[%emt 0:00:10]} Kh3 {[%emt 0:00:00]} 46. h6 {[%emt 0:00:06]} Kh2 {[%emt 0:00:00]} 47. h7 {[%emt 0:00:06]} b2+ {[%emt 0:00:00]} 48. Kb1 {[%emt 0:00:09]} Kh3 {[%emt 0:00:00]} 49. h8=Q# {[%emt 0:00:41]} 1-0

[Event "XVI Memorial Lezcano Montalvo 2024"]
[Site "Gran Canaria"]
[Date "2024.03.28"]
[Round "6.34"]
[White "Sanchez Gonzalez, Diego"]
[Black "Roca Marrero, Fernando"]
[Result "0-1"]
[ECO "E90"]
[WhiteElo "1908"]
[BlackElo "1666"]
[Annotator "NA RC"]
[PlyCount "97"]
[EventDate "2024.03.23"]
[EventType "swiss"]
[EventCountry "ESP"]
[SourceTitle "playchess.com"]
[Source "ChessBase"]
[SourceQuality "1"]
[TimeControl "5400+30"]

1. e4 {[%emt 0:00:02]} d6 {[%emt 0:00:43]} 2. d4 {[%emt 0:00:10]} g6 {[%emt 0:01:09]} 3. c4 {[%emt 0:02:41]} Bg7 {[%emt 0:00:25]} 4. Nf3 {[%emt 0:01:44]} Nd7 {[%emt 0:02:03]} 5. Nc3 {[%emt 0:00:17]} e5 {[%emt 0:00:13]} 6. Be3 {[%emt 0:00:41]} Ngf6 {[%emt 0:01:17]} 7. h3 {[%emt 0:00:24]} O-O {[%emt 0:01:34]} 8. Bd3 {[%emt 0:00:31]} Re8 {[%emt 0:00:38]} 9. O-O {[%emt 0:00:13]} Qe7 {[%emt 0:01:00]} 10. Re1 {[%emt 0:00:46]} Nf8 {[%emt 0:03:57]} 11. Qd2 {[%emt 0:03:23]} exd4 {[%emt 0:01:53]} 12. Nxd4 {[%emt 0:02:21]} Ne6 {[%emt 0:00:06]} 13. f4 {[%emt 0:00:39]} Nxd4 {[%emt 0:01:19]} 14. Bxd4 {[%emt 0:00:11]} c5 {[%emt 0:02:39]} 15. Bf2 {[%emt 0:00:36]} Nh5 {[%emt 0:00:23]} 16. Nd5 {[%emt 0:02:15]} Qd8 {[%emt 0:01:43]} 17. f5 {[%emt 0:09:45]} Be5 {[%emt 0:13:51]} 18. Rf1 {[%emt 0:01:50]} g5 {[%emt 0:03:24]} 19. Be2 {[%emt 0:05:40]} Nf4 {[%emt 0:00:16]} 20. Be3 {[%emt 0:00:48]} Nxd5 {[%emt 0:00:18]} 21. cxd5 {[%emt 0:00:12]} f6 {[%emt 0:00:54]} 22. Bh5 {[%emt 0:00:59]} Re7 {[%emt 0:00:27]} 23. Qf2 {[%emt 0:00:17]} Bd7 {[%emt 0:04:10]} 24. g4 {[%emt 0:03:17]} Be8 {[%emt 0:00:24]} 25. Bxe8 {[%emt 0:03:40]} Qxe8 {[%emt 0:00:08]} 26. Rae1 {[%emt 0:00:36]} Qa4 {[%emt 0:00:50]} 27. b3 {[%emt 0:10:36]} Qd7 {[%emt 0:03:19]} 28. Kg2 {[%emt 0:00:46]} h6 {[%emt 0:00:10]} 29. h4 {[%emt 0:00:16]} Rh7 {[%emt 0:00:52]} 30. Rh1 {[%emt 0:00:33]} Qg7 {[%emt 0:13:02]} 31. Kf3 {[%emt 0:05:30]} Kf7 {[%emt 0:03:49]} 32. Rc1 {[%emt 0:02:36]} b6 {[%emt 0:00:28]} 33. b4 {[%emt 0:02:11]} Rb8 {[%emt 0:00:32]} 34. bxc5 {[%emt 0:02:06]} bxc5 {[%emt 0:00:17]} 35. Rb1 {[%emt 0:00:21]} Rhh8 {[%emt 0:00:03]} 36. Qd2 {[%emt 0:07:32]} Qf8 {[%emt 0:08:28]} 37. Qa5 {[%emt 0:07:11]} Qe7 {[%emt 0:00:20]} 38. hxg5 {[%emt 0:00:14]} hxg5 {[%emt 0:04:07]} 39. Rxh8 {[%emt 0:01:23]} Rxh8 {[%emt 0:00:08]} 40. Qa6 {[%emt 0:00:12]} Rd8 {[%emt 0:08:49]} 41. Bxc5 {[%emt 0:00:55]} dxc5 {[%emt 0:07:17]} 42. Rb7 {[%emt 0:00:13]} Rd7 {[%emt 0:00:14]} 43. Qe6+ {[%emt 0:00:09]} Ke8 {[%emt 0:02:10]} 44. Qg8+ {[%emt 0:01:22]} Qf8 {[%emt 0:00:16]} 45. Qxf8+ {[%emt 0:00:07]} Kxf8 {[%emt 0:00:14]} 46. Rxd7 {[%emt 0:00:06]} a5 {[%emt 0:04:09]} 47. Ke3 {[%emt 0:01:08]} c4 {[%emt 0:00:02]} 48. Ra7 {[%emt 0:00:30]} Bf4+ {[%emt 0:01:17]} 49. Kd4 {[%emt 0:01:01]} 0-1

[Event "XVI Memorial Lezcano Montalvo 2024"]
[Site "Gran Canaria"]
[Date "2024.03.28"]
[Round "6.35"]
[White "Perez Betancor, Jose Luis"]
[Black "Ramos Santana, Marcelino"]
[Result "0-1"]
[ECO "B22"]
[WhiteElo "1765"]
[BlackElo "1897"]
[Annotator "NA RC"]
[PlyCount "52"]
[EventDate "2024.03.23"]
[EventType "swiss"]
[EventCountry "ESP"]
[SourceTitle "playchess.com"]
[Source "ChessBase"]
[SourceQuality "1"]
[TimeControl "5400+30"]

1. e4 {[%emt 0:02:53]} c5 {[%emt 0:00:40]} 2. d4 {[%emt 0:00:08]} cxd4 {[%emt 0:00:56]} 3. c3 {[%emt 0:00:09]} Nf6 {[%emt 0:00:14]} 4. e5 {[%emt 0:00:13]} Nd5 {[%emt 0:00:06]} 5. Qxd4 {[%emt 0:00:18]} e6 {[%emt 0:00:30]} 6. Nf3 {[%emt 0:00:09]} Nc6 {[%emt 0:00:46]} 7. Qe4 {[%emt 0:00:13]} f5 {[%emt 0:00:10]} 8. Qe2 {[%emt 0:00:18]} Qc7 {[%emt 0:00:10]} 9. g3 {[%emt 0:01:34]} b6 {[%emt 0:00:09]} 10. Bg2 {[%emt 0:00:43]} Ncb4 {[%emt 0:00:16]} 11. Na3 {[%emt 0:02:29]} Ba6 {[%emt 0:00:57]} 12. c4 {[%emt 0:01:04]} Rc8 {[%emt 0:03:40]} 13. O-O {[%emt 0:09:12]} Bxc4 {[%emt 0:01:10]} 14. Nxc4 {[%emt 0:00:15]} Qxc4 {[%emt 1:27:46]} 15. Qxc4 {[%emt 0:02:49]} Rxc4 {[%emt 0:00:00]} 16. Bd2 {[%emt 0:01:59]} Nd3 {[%emt 0:00:00]} 17. b3 {[%emt 0:01:57]} Rc2 {[%emt 0:00:00]} 18. Rfd1 {[%emt 0:02:21]} Bc5 {[%emt 0:00:00]} 19. Rf1 {[%emt 0:02:10]} O-O {[%emt 0:00:00]} 20. a3 {[%emt 0:01:01]} b5 {[%emt 0:00:00]} 21. b4 {[%emt 0:04:39]} Bb6 {[%emt 0:00:00]} 22. a4 {[%emt 0:00:15]} bxa4 {[%emt 0:00:00]} 23. Ra3 {[%emt 0:01:41]} N3xb4 {[%emt 0:00:00]} 24. Bxb4 {[%emt 0:00:25]} Nxb4 {[%emt 0:00:00]} 25. Ne1 {[%emt 0:01:08]} Ra2 {[%emt 0:00:00]} 26. Rc3 {[%emt 0:01:49]} a3 {[%emt 0:06:00]} 0-1

[Event "XVI Memorial Lezcano Montalvo 2024"]
[Site "Gran Canaria"]
[Date "2024.03.28"]
[Round "6.36"]
[White "Broeder, Hans-Gert"]
[Black "Illana Elorduy, Jesus Eusebio"]
[Result "1-0"]
[ECO "C47"]
[WhiteElo "1860"]
[BlackElo "1623"]
[Annotator "NA RC"]
[PlyCount "47"]
[EventDate "2024.03.23"]
[EventType "swiss"]
[EventCountry "ESP"]
[SourceTitle "playchess.com"]
[Source "ChessBase"]
[SourceQuality "1"]
[TimeControl "5400+30"]

1. e4 {[%emt 0:00:22]} Nf6 {[%emt 0:00:08]} 2. Nc3 {[%emt 0:00:25]} e5 {[%emt 0:00:11]} 3. Nf3 {[%emt 0:00:14]} Nc6 {[%emt 0:00:03]} 4. d4 {[%emt 0:00:11]} Bb4 {[%emt 0:06:45]} 5. Nxe5 {[%emt 0:01:44]} Nxe4 {[%emt 0:00:50]} 6. Qg4 {[%emt 0:00:04]} Nxc3 {[%emt 0:08:18]} 7. Qxg7 {[%emt 0:00:51]} Rf8 {[%emt 0:00:50]} 8. a3 {[%emt 0:01:22]} Nd5+ {[%emt 0:04:12]} 9. axb4 {[%emt 0:01:17]} Nxd4 {[%emt 0:03:18]} 10. Bh6 {[%emt 0:06:36]} Ne6 {[%emt 0:06:31]} 11. Qxh7 {[%emt 0:02:56]} Qe7 {[%emt 0:01:22]} 12. Bxf8 {[%emt 0:03:02]} Nxf8 {[%emt 0:00:06]} 13. Qg7 {[%emt 0:05:10]} d6 {[%emt 0:00:56]} 14. O-O-O {[%emt 0:01:54]} dxe5 {[%emt 0:03:44]} 15. Rxd5 {[%emt 0:00:37]} Be6 {[%emt 0:01:19]} 16. Rxe5 {[%emt 0:03:27]} O-O-O {[%emt 0:01:47]} 17. Bc4 {[%emt 0:03:46]} Qxb4 {[%emt 0:02:32]} 18. Bxe6+ {[%emt 0:00:10]} fxe6 {[%emt 0:03:17]} 19. Rd1 {[%emt 0:06:37]} Qf4+ {[%emt 0:00:48]} 20. Re3 {[%emt 0:00:05]} Rxd1+ {[%emt 0:03:07]} 21. Kxd1 {[%emt 0:00:02]} Qxf2 {[%emt 0:01:43]} 22. Rf3 {[%emt 0:01:38]} Qg1+ {[%emt 0:00:29]} 23. Kd2 {[%emt 0:00:02]} Nh7 {[%emt 0:02:06]} 24. Qh8+ {[%emt 0:01:12]} 1-0